fUSD/lending_fUSD_20240116
["ID","MTS","AMOUNT","RATE_DAILY","PERIOD"]
[311733297,1705367476085,-1194.74,0.0002301,2]
[311733298,1705367476094,-1059.45,0.0002301,2]
[311733299,1705367476104,-500.0,0.0002301,2]
[311733300,1705367476113,-1087.9,0.0002301,2]
[311733301,1705367476122,-1017.51,0.0002301,2]
[311733302,1705367476133,-677.42,0.0002301,2]
[311733303,1705367476142,-814.16,0.0002301,2]
[311733304,1705367476151,-847.09,0.0002301,2]
[311733305,1705367476161,-500.0,0.0002301,2]
[311733306,1705367476171,-1002.35,0.0002301,2]
[311733307,1705367476180,-599.96,0.0002301,2]
[311733308,1705367476189,-967.64,0.0002301,2]
[311733309,1705367476199,-758.69,0.0002301,2]
[311733310,1705367476207,-1317.3,0.0002301,2]
[311733311,1705367476217,-851.73,0.0002301,2]
[311733312,1705367476227,-958.59,0.0002301,2]
[311733313,1705367476236,-611.3,0.0002301,2]
[311733314,1705367476245,-714.32,0.0002301,2]
[311733315,1705367476254,-500.0,0.0002301,2]
[311733316,1705367476263,-813.53,0.0002301,2]
[311733317,1705367476272,-500.0,0.0002301,2]
[311733318,1705367476281,-518.27,0.0002301,2]
[311733319,1705367476290,-949.38,0.0002301,2]
[311733320,1705367476299,-1414.96,0.0002301,2]
[311733321,1705367476311,-885.66,0.0002301,2]
[311733322,1705367476320,-773.02,0.0002301,2]
[311733323,1705367476329,-1086.48,0.0002301,2]
[311733324,1705367476338,-1222.08,0.0002301,2]
[311733325,1705367476348,-1488.44,0.0002301,2]
[311733326,1705367476357,-503.14,0.0002301,2]
[311733327,1705367476367,-755.32,0.0002301,2]
[311733328,1705367476376,-500.0,0.0002301,2]
[311733329,1705367476385,-500.0,0.0002301,2]
[311733330,1705367476394,-1391.76,0.0002301,2]
[311733331,1705367476403,-815.31,0.0002301,2]
[311733332,1705367476412,-1062.5,0.0002301,2]
[311733333,1705367476422,-1355.0,0.0002301,2]
[311733334,1705367476431,-903.65,0.0002301,2]
[311733335,1705367476440,-800.25,0.0002301,2]
[311733336,1705367476449,-1416.45,0.0002301,2]
[311733337,1705367476459,-500.0,0.0002301,2]
[311733338,1705367476468,-965.23,0.0002301,2]
[311733339,1705367476478,-946.78,0.0002301,2]
[311733340,1705367476487,-827.39,0.0002301,2]
[311733341,1705367476497,-1304.85,0.0002301,2]
[311733342,1705367476506,-1213.65,0.0002301,2]
[311733343,1705367476515,-970.08,0.0002301,2]
[311733344,1705367476525,-1112.47,0.0002301,2]
[311733345,1705367476534,-796.48,0.0002301,2]
[311733346,1705367476543,-1115.8,0.0002301,2]
[311733347,1705367476553,-500.0,0.0002301,2]
[311733348,1705367476562,-719.18,0.0002301,2]
[311733349,1705367476571,-906.77,0.0002301,2]
[311733350,1705367476581,-814.55,0.0002301,2]
[311733351,1705367476591,-1227.66,0.0002301,2]
[311733352,1705367476600,-1269.9,0.0002301,2]
[311733353,1705367476610,-255.19630397,0.0002301,2]
[311733354,1705367477320,-1128.54369603,0.0002301,2]
[311733355,1705367477330,-1122.67,0.0002301,2]
[311733356,1705367477340,-3515.09,0.0002301,2]
[311733357,1705367477350,-1170.95,0.0002301,2]
[311733358,1705367477360,-1008.82,0.0002301,2]
[311733359,1705367477369,-909.45,0.0002301,2]
[311733360,1705367477378,-500.0,0.0002301,2]
[311733361,1705367477388,-942.47,0.0002301,2]
[311733362,1705367477398,-501.34,0.0002301,2]
[311733363,1705367477407,-155.9,0.00023019,2]
[311733364,1705367477417,-193.83,0.00023041,2]
[311733365,1705367477426,-1219.37777339,0.00023044,2]
[311733366,1705367477435,-822.56916858,0.0002307,2]
[311733367,1705367477446,-157.712006,0.00023071,7]
[311733368,1705367477456,-151.0,0.00023071,7]
[311733369,1705367477465,-151.0,0.00023071,7]
[311733370,1705367477475,-172.187194,0.00023071,7]
[311733371,1705367477485,-259.3728,0.00023071,2]
[311733372,1705367477494,-259.3728,0.00023071,2]
[311733373,1705367477504,-154.844232,0.00023071,7]
[311733374,1705367477514,-154.844232,0.00023071,7]
[311733375,1705367477524,-151.0,0.00023071,7]
[311733376,1705367477534,-151.0,0.00023071,7]
[311733377,1705367477544,-169.914393,0.00023071,7]
[311733378,1705367477553,-500.0,0.00023071,2]
[311733379,1705367477563,-500.0,0.00023071,2]
[311733380,1705367477573,-500.0,0.00023071,2]
[311733381,1705367477583,-500.0,0.00023071,2]
[311733382,1705367477592,-692.17,0.00023071,2]
[311733383,1705367477602,-646.8,0.00023071,2]
[311733384,1705367477612,-500.0,0.00023071,2]
[311733385,1705367477621,-503.64,0.00023071,2]
[311733386,1705367477631,-775.56,0.00023071,2]
[311733387,1705367477641,-768.18,0.00023071,2]
[311733388,1705367477651,-500.0,0.00023071,2]
[311733389,1705367477662,-820.95,0.00023071,2]
[311733390,1705367477672,-806.72,0.00023071,2]
[311733391,1705367477682,-500.0,0.00023071,2]
[311733392,1705367477693,-522.46,0.00023071,2]
[311733393,1705367477704,-500.0,0.00023071,2]
[311733394,1705367477716,-500.0,0.00023071,2]
[311733395,1705367477726,-720.7,0.00023071,2]
[311733396,1705367477737,-500.0,0.00023071,2]
[311733397,1705367477749,-574.91,0.00023071,2]
[311733398,1705367477760,-500.0,0.00023071,2]
[311733399,1705367477770,-500.0,0.00023071,2]
[311733400,1705367477780,-500.0,0.00023071,2]
[311733401,1705367477790,-599.48,0.00023071,2]
[311733402,1705367477800,-500.0,0.00023071,2]
[311733403,1705367477812,-500.0,0.00023071,2]
[311733404,1705367477821,-500.0,0.00023071,2]
[311733405,1705367477831,-1000.0,0.00023071,2]
[311733406,1705367477842,-500.0,0.00023071,2]
[311733407,1705367477852,-500.0,0.00023071,2]
[311733408,1705367477861,-776.33,0.00023071,2]
[311733409,1705367477871,-500.0,0.00023071,2]
[311733410,1705367477880,-500.0,0.00023071,2]
[311733411,1705367477890,-500.0,0.00023071,2]
[311733412,1705367477900,-500.0,0.00023071,2]
[311733413,1705367477911,-927.72,0.00023071,2]
[311733414,1705367477920,-626.14,0.00023071,2]
[311733415,1705367477930,-500.0,0.00023071,2]
[311733416,1705367477940,-607.4,0.00023071,2]
[311733417,1705367477950,-500.0,0.00023071,2]
[311733418,1705367477960,-500.0,0.00023071,2]
[311733419,1705367477970,-500.0,0.00023071,2]
[311733420,1705367477981,-500.0,0.00023071,2]
[311733421,1705367477990,-660.73,0.00023071,2]
[311733422,1705367478000,-610.48,0.00023071,2]
[311733423,1705367478010,-500.0,0.00023071,2]
[311733424,1705367478021,-545.69,0.00023071,2]
[311733425,1705367478031,-534.73,0.00023071,2]
[311733426,1705367478040,-500.0,0.00023071,2]
[311733427,1705367478051,-500.0,0.00023071,2]
[311733428,1705367478061,-500.0,0.00023071,2]
[311733429,1705367478071,-500.0,0.00023071,2]
[311733430,1705367478081,-500.0,0.00023071,2]
[311733431,1705367478091,-500.0,0.00023071,2]
[311733432,1705367478101,-500.0,0.00023071,2]
[311733433,1705367478111,-711.48,0.00023071,2]
[311733434,1705367478122,-500.0,0.00023071,2]
[311733435,1705367478132,-829.56,0.00023071,2]
[311733436,1705367478142,-500.0,0.00023071,2]
[311733437,1705367478152,-500.0,0.00023071,2]
[311733438,1705367478165,-705.61,0.00023071,2]
[311733439,1705367478176,-812.96,0.00023071,2]
[311733440,1705367478186,-500.0,0.00023071,2]
[311733441,1705367478197,-1228.02,0.00023071,2]
[311733442,1705367478207,-533.63,0.00023071,2]
[311733443,1705367478218,-732.26,0.00023071,2]
[311733444,1705367478228,-559.54,0.00023071,2]
[311733445,1705367478238,-753.96,0.00023071,2]
[311733446,1705367478248,-500.0,0.00023071,2]
[311733447,1705367478258,-500.0,0.00023071,2]
[311733448,1705367478268,-500.0,0.00023071,2]
[311733449,1705367478278,-500.0,0.00023071,2]
[311733450,1705367478288,-725.28,0.00023071,2]
[311733451,1705367478298,-508.811705,0.00023071,2]
[311733452,1705367478308,-455.37655266,0.00023071,2]
[311733453,1705367478317,-528.06,0.00023071,2]
[311733454,1705367478327,-512.38,0.00023071,2]
[311733455,1705367478337,-500.0,0.00023071,2]
[311733456,1705367478346,-500.0,0.00023071,2]
[311733457,1705367478357,-1468.3,0.00023071,2]
[311733458,1705367478367,-869.41,0.00023071,2]
[311733459,1705367478377,-500.0,0.00023071,2]
[311733460,1705367478387,-500.0,0.00023071,2]
[311733461,1705367478398,-500.0,0.00023071,2]
[311733462,1705367478409,-500.0,0.00023071,2]
[311733463,1705367478420,-738.76,0.00023071,2]
[311733464,1705367478430,-500.0,0.00023071,2]
[311733465,1705367478439,-500.0,0.00023071,2]
[311733466,1705367478449,-1129.52,0.00023071,2]
[311733467,1705367478460,-500.0,0.00023071,2]
[311733468,1705367478470,-500.0,0.00023071,2]
[311733469,1705367478479,-708.42,0.00023071,2]
[311733470,1705367478489,-570.9,0.00023071,2]
[311733471,1705367478498,-679.21,0.00023071,2]
[311733472,1705367478508,-500.0,0.00023071,2]
[311733473,1705367478520,-671.47,0.00023071,2]
[311733474,1705367478531,-529.57,0.00023071,2]
[311733475,1705367478542,-500.0,0.00023071,2]
[311733476,1705367478552,-500.0,0.00023071,2]
[311733477,1705367478563,-500.0,0.00023071,2]
[311733478,1705367478574,-401.00981632,0.00023071,2]
[311733479,1705367478584,-500.0,0.00023071,2]
[311733480,1705367478593,-500.0,0.00023071,2]
[311733481,1705367478603,-500.0,0.00023071,2]
[311733482,1705367478614,-500.0,0.00023071,2]
[311733483,1705367478624,-500.0,0.00023071,2]
[311733484,1705367478636,-500.0,0.00023071,2]
[311733485,1705367478647,-537.92,0.00023071,2]
[311733486,1705367478662,-500.0,0.00023071,2]
[311733487,1705367478673,-765.94,0.00023071,2]
[311733488,1705367478683,-513.13,0.00023071,2]
[311733489,1705367478693,-500.0,0.00023071,2]
[311733490,1705367478704,-500.0,0.00023071,2]
[311733491,1705367478715,-500.0,0.00023071,2]
[311733492,1705367478726,-640.19,0.00023071,2]
[311733493,1705367478736,-500.0,0.00023071,2]
[311733494,1705367478745,-1129.19,0.00023071,2]
[311733495,1705367478757,-567.68525852,0.00023071,2]
[311733496,1705367478767,-500.0,0.00023071,2]
[311733497,1705367478777,-500.0,0.00023071,2]
[311733498,1705367478787,-520.48482105,0.00023071,2]
[311733499,1705367478797,-500.0,0.00023071,2]
[311733500,1705367478806,-500.0,0.00023071,2]
[311733501,1705367478816,-500.0,0.00023071,2]
[311733502,1705367478827,-559.34,0.00023071,2]
[311733503,1705367478837,-500.0,0.00023071,2]
[311733504,1705367478848,-500.0,0.00023071,2]
[311733505,1705367478858,-792.71,0.00023071,2]
[311733506,1705367478869,-642.73,0.00023071,2]
[311733507,1705367478879,-500.0,0.00023071,2]
[311733508,1705367478889,-500.0,0.00023071,2]
[311733509,1705367478898,-500.0,0.00023071,2]
[311733510,1705367478908,-772.16,0.00023071,2]
[311733511,1705367478918,-569.45,0.00023071,2]
[311733512,1705367478927,-500.0,0.00023071,2]
[311733513,1705367478937,-500.0,0.00023071,2]
[311733514,1705367478947,-500.0,0.00023071,2]
[311733515,1705367478957,-500.0,0.00023071,2]
[311733516,1705367478966,-1663.63,0.00023072,2]
[311733517,1705367478976,-220.5,0.00023078,2]
[311733518,1705367478986,-2000.0,0.00023129,2]
[311733519,1705367478996,-11748.34634841,0.0002313,2]
[311733520,1705367479006,-756.61,0.0002314,2]
[311733521,1705367479016,-155.9,0.00023149,2]
[311733522,1705367479027,-193.83,0.00023156,2]
[311733523,1705367479036,-220.5,0.0002319,2]
[311733524,1705367479046,-151.0,0.00023234,7]
[311733525,1705367479056,-159.35,0.00023252,2]
[311733526,1705367479066,-193.83,0.00023271,2]
[311733527,1705367479075,-1976.66,0.00023272,2]
[311733528,1705367479085,-1184.96,0.00023273,2]
[311733529,1705367479095,-3927.97,0.00023273,2]
[311733530,1705367479105,-2466.28,0.00023273,2]
[311733531,1705367479115,-500.0,0.00023273,2]
[311733532,1705367479125,-834.98,0.00023273,2]
[311733533,1705367479136,-2030.36,0.00023273,2]
[311733534,1705367479146,-1901.88962569,0.00023273,2]
[311733535,1705367479165,-14401.03037431,0.00023273,2]
[311733536,1705367479468,-1347.82,0.00023273,2]
[311733537,1705367479478,-1237.85,0.00023273,2]
[311733538,1705367479487,-1447.84,0.00023273,2]
[311733539,1705367479496,-1403.26,0.00023273,2]
[311733540,1705367479506,-3433.26,0.00023273,2]
[311733541,1705367479515,-1844.97,0.00023273,2]
[311733542,1705367479524,-1173.52,0.00023273,2]
[311733543,1705367479534,-1595.43,0.00023273,2]
[311733544,1705367479543,-1615.39,0.00023273,2]
[311733545,1705367479552,-1170.01,0.00023273,2]
[311733546,1705367479561,-1113.5,0.00023273,2]
[311733547,1705367479570,-500.0,0.00023273,2]
[311733548,1705367479580,-1814.24,0.00023273,2]
[311733549,1705367479591,-967.27,0.00023273,2]
[311733550,1705367479601,-856.14,0.00023273,2]
[311733551,1705367479610,-2339.5,0.00023273,2]
[311733552,1705367479619,-595.89,0.00023273,5]
[311733553,1705367479629,-3952.03,0.00023273,2]
[311733554,1705367479638,-1027.0,0.00023273,2]
[311733555,1705367479647,-865.16,0.00023273,2]
[311733556,1705367479657,-946.9,0.00023277,2]
[311733557,1705367479667,-1382.59,0.00023277,2]
[311733558,1705367479679,-5349.57,0.00023277,2]
[311733559,1705367479688,-1032.75,0.00023277,2]
[311733560,1705367479697,-2244.41,0.00023277,2]
[311733561,1705367479706,-9767.43,0.00023277,2]
[311733562,1705367479715,-1588.97,0.00023277,2]
[311733563,1705367479724,-14702.97,0.00023277,2]
[311733564,1705367479734,-798.6,0.00023277,2]
[311733565,1705367479743,-4716.94,0.00023277,2]
[311733566,1705367479755,-3408.86,0.00023277,2]
[311733567,1705367479765,-28462.82,0.00023277,2]
[311733568,1705367479775,-2191.53,0.00023277,2]
[311733569,1705367479785,-1489.4,0.00023277,2]
[311733570,1705367479794,-1945.41,0.00023277,2]
[311733571,1705367479803,-1054.19,0.00023277,2]
[311733572,1705367479814,-4497.49480491,0.00023277,2]
[311733573,1705367479850,-500.0,0.00022184,2]
[311733574,1705367479861,-122.17523336,0.00023009,2]
[311733575,1705367480683,-1157.52,0.00022188,2]
[311733576,1705367480693,-1157.52,0.00022462,2]
[311733577,1705367480704,-1157.52,0.00022736,2]
[311733578,1705367480713,-169.914393,0.00022894,7]
[311733579,1705367480723,-719.39905567,0.000229,2]
[311733580,1705367480732,-169.914393,0.00023,7]
[311733581,1705367480742,-169.914393,0.00023,7]
[311733582,1705367480752,-500.0,0.00023006,2]
[311733583,1705367480761,-500.0,0.00023006,2]
[311733584,1705367480771,-377.82476664,0.00023009,2]
[311733585,1705367480781,-1157.52,0.0002301,2]
[311733586,1705367480790,-169.914393,0.00023071,7]
[311733587,1705367480800,-842.07519509,0.00023277,2]
[311733588,1705367480809,-1700.51,0.00023277,2]
[311733589,1705367480818,-798.99,0.00023277,2]
[311733590,1705367480828,-889.04,0.00023277,2]
[311733591,1705367480838,-964.92,0.00023277,2]
[311733592,1705367480848,-1928.11,0.00023277,2]
[311733593,1705367480859,-2074.73,0.00023277,2]
[311733594,1705367480868,-592.43,0.00023277,2]
[311733595,1705367480878,-3693.46248547,0.00023277,2]
[311733596,1705367482141,-374.40154912,0.0002218,2]
[311733597,1705367482151,-500.0,0.00022184,2]
[311733598,1705367482160,-896.56808285,0.00023277,2]
[311733599,1705367482172,-793.21368436,0.00023277,2]
[311733600,1705367482196,-293.79,0.00023277,2]
[311733601,1705367482302,-835.97574732,0.00023277,2]
[311733602,1705367482312,-480.33023599,0.00023277,2]
[311733603,1705367483367,-500.0,0.00022184,2]
[311733604,1705367483376,-12.67,0.00022187,2]
[311733605,1705367501229,207.0,0.0002137,2]
[311733606,1705367503717,328.0,0.00021866,2]
[311733607,1705367516758,5676.40455657,0.00022078,2]
[311733608,1705367516784,60918.58374343,0.00022078,2]
[311733609,1705367550442,150.0,0.00022084,2]
[311733610,1705367550464,150.0,0.00022084,2]
[311733611,1705367550486,150.0,0.00022084,2]
[311733612,1705367550507,150.0,0.00022084,2]
[311733613,1705367550530,150.0,0.00022084,2]
[311733614,1705367550550,260.62837074,0.00022084,2]
[311733615,1705367550571,54544.37162926,0.00022084,2]
[311733616,1705367581197,150.0,0.00022076,2]
[311733617,1705367581219,3010.4274,0.00022076,2]
[311733618,1705367601129,150.0,0.00022076,2]
[311733619,1705367601150,150.0,0.00022076,2]
[311733620,1705367601171,150.0,0.00022076,2]
[311733621,1705367601192,150.0,0.00022076,2]
[311733622,1705367601217,150.0,0.00022076,2]
[311733623,1705367601239,6750.0,0.00022076,2]
[311733624,1705367603012,500.0,0.00022177,7]
[311733625,1705367605244,665.88,0.00021445,2]
[311733626,1705367626077,500.0,0.00022083,2]
[311733627,1705367651906,155.12,0.00021549,2]
[311733628,1705367653793,500.0,0.00022184,5]
[311733629,1705367675039,158.2,0.00021579,2]
[311733630,1705367703673,500.0,0.00022176,5]
[311733631,1705367710211,150.0,0.00022083,2]
[311733632,1705367710231,150.0,0.00022083,2]
[311733633,1705367710251,150.0,0.00022083,2]
[311733634,1705367710270,150.0,0.00022083,2]
[311733635,1705367710288,150.0,0.00022083,2]
[311733636,1705367710308,250.0,0.00022083,2]
[311733638,1705367743127,150.0,0.00021331,2]
[311733639,1705367743155,100.0,0.00021331,2]
[311733640,1705367767186,1978.4198,0.00022083,2]
[311733642,1705367815501,150.0,0.00021918,2]
[311733643,1705367815525,100.0,0.00021918,2]
[311733644,1705367819128,2000.0,0.00021313,2]
[311733645,1705367824912,250.0,0.00019395,2]
[311733646,1705367824934,113.98,0.00019395,2]
[311733647,1705367825167,363.98,0.00021659,2]
[311733648,1705367930328,500.0,0.00022182,5]
[311733649,1705367942623,151.85,0.00021289,2]
[311733650,1705367942848,151.85,0.00021422,2]
[311733651,1705367943069,151.85,0.00021555,2]
[311733652,1705367943354,151.85,0.00021688,2]
[311733653,1705367943531,151.85,0.00021821,2]
[311733654,1705367944080,151.85,0.00021954,2]
[311733655,1705367944152,151.85,0.00022087,2]
[311733656,1705367948297,23900.0,0.00021273,2]
[311733657,1705367955362,1000.0,0.00022077,2]
[311733658,1705367961623,737.6,0.00021273,2]
[311733659,1705367970283,365.1,0.00021273,2]
[311733660,1705367995159,500.0,0.00022181,5]
[311733661,1705368004158,204.0,0.00021403,2]
[311733662,1705368011093,432.37803992,0.00022087,2]
[311733664,1705368033119,166.32,0.0002128,2]
[311733667,1705368100972,631.83,0.00021277,2]
[311733668,1705368146095,288.25202662,0.00022084,2]
[311733670,1705368195811,155.31578376,0.00022074,2]
[311733671,1705368232533,150.0,0.00021284,2]
[311733672,1705368232560,319.0784287,0.00022084,2]
[311733673,1705368233718,500.0,0.00022177,5]
[311733674,1705368264967,500.0,0.00022179,5]
[311733675,1705368274233,204.0,0.00021403,2]
[311733677,1705368284624,192.16801774,0.00022084,2]
[311733679,1705368292277,342.35,0.00019354,2]
[311733680,1705368292502,342.35,0.00021618,2]
[311733682,1705368344704,256.04534602,0.00022084,2]
[311733684,1705368352716,170.59,0.00021265,10]
[311733685,1705368353008,170.59,0.00021786,10]
[311733686,1705368366234,467.52004587,0.00022179,7]
[311733687,1705368383230,250.0,0.00021918,2]
[311733688,1705368409542,23890.0,0.00021258,2]
[311733690,1705368413369,212.71895246,0.00022083,2]
[311733691,1705368421157,189.56,0.00021258,2]
[311733693,1705368427043,182.43,0.00021258,2]
[311733695,1705368435835,500.0,0.00022178,5]
[311733696,1705368457840,500.0,0.00022176,5]
[311733701,1705368499991,152.27,0.00021424,2]
[311733707,1705368552250,55555.0,0.00022082,2]
[311733713,1705368611450,189.16366846,0.00021424,2]
[311733714,1705368613765,1485.74,0.000221,2]
[311733716,1705368619173,1000.0,0.00021274,2]
[311733720,1705368631805,-902.75151822,0.00022167,2]
[311733721,1705368631818,-456.31690773,0.00022167,2]
[311733722,1705368631831,-603.38594653,0.00022167,2]
[311733724,1705368631843,-156.31350182,0.00022167,2]
[311733726,1705368631853,-173.65613975,0.00022168,2]
[311733728,1705368631865,-245.68310072,0.00022168,2]
[311733729,1705368631875,-325.10435343,0.00022174,2]
[311733730,1705368631900,-386.45564657,0.00022174,2]
[311733731,1705368631909,-204.29770003,0.00022174,2]
[311733732,1705368631918,-758.25027114,0.00022174,2]
[311733733,1705368631927,-2381.24454429,0.00022174,2]
[311733734,1705368631936,-717.63,0.00022175,2]
[311733735,1705368631946,-150.0,0.00022175,2]
[311733736,1705368631957,-163.15194376,0.00022175,2]
[311733737,1705368631966,-464.0400154,0.00022175,2]
[311733738,1705368631975,-733.28,0.00022176,2]
[311733739,1705368631985,-727.99,0.00022176,2]
[311733740,1705368631994,-580.07,0.00022176,2]
[311733741,1705368632003,-500.0,0.00022176,2]
[311733742,1705368632013,-285.98818367,0.00022176,2]
[311733743,1705368632044,-4448.13567168,0.00022176,2]
[311733744,1705368632090,-993.34614465,0.00022176,2]
[311733745,1705368632100,-37.20421356,0.00022176,2]
[311733746,1705368632111,-518.79841674,0.00022176,2]
[311733747,1705368632123,-1550.5273697,0.00022176,2]
[311733748,1705368632133,-1829.57,0.00022176,2]
[311733749,1705368632143,-1516.47,0.00022176,2]
[311733750,1705368632153,-1076.4,0.00022176,2]
[311733751,1705368632162,-2566.96,0.00022176,2]
[311733752,1705368632171,-7295.65,0.00022176,2]
[311733753,1705368632180,-3263.01,0.00022176,2]
[311733754,1705368632190,-621.04,0.00022176,2]
[311733755,1705368632199,-2000.4,0.00022176,2]
[311733756,1705368632208,-3423.94,0.00022176,2]
[311733758,1705368632217,-3718.8,0.00022176,2]
[311733760,1705368632227,-2142.81,0.00022176,2]
[311733762,1705368632236,-1424.56,0.00022176,2]
[311733764,1705368632245,-3642.61,0.00022176,2]
[311733766,1705368632254,-3334.09,0.00022176,2]
[311733768,1705368632263,-1576.95,0.00022176,2]
[311733769,1705368632273,-1019.47,0.00022176,2]
[311733770,1705368632283,-2975.84804943,0.00022176,2]
[311733771,1705368632295,-1346.73195057,0.00022176,2]
[311733772,1705368632304,-2400.35920607,0.00022176,2]
[311733773,1705368632316,-305.79079393,0.00022176,2]
[311733774,1705368632325,-236.39919607,0.00022176,2]
[311733775,1705368632343,-546.54532813,0.00022176,2]
[311733776,1705368632354,-163.7054758,0.00022176,2]
[311733777,1705368632364,-353.76982263,0.00022176,2]
[311733778,1705368632376,-307.51494231,0.00022176,2]
[311733779,1705368632390,-1190.02523506,0.00022176,2]
[311733780,1705368632399,-236.70572711,0.00022176,2]
[311733781,1705368632422,-481.88427289,0.00022176,2]
[311733782,1705368632431,-4001.07786803,0.00022176,2]
[311733783,1705368632449,-252.01213197,0.00022176,2]
[311733784,1705368632459,-568.85085699,0.00022176,2]
[311733785,1705368632471,-145.04914301,0.00022176,2]
[311733786,1705368632482,-210.32587347,0.00022176,2]
[311733787,1705368632501,-2606.87412653,0.00022176,2]
[311733788,1705368632510,-12.03022341,0.00022176,2]
[311733789,1705368632521,-1038.37070633,0.00022176,2]
[311733790,1705368632554,-492.73907026,0.00022176,2]
[311733791,1705368632564,-721.56,0.00022177,2]
[311733792,1705368632574,-673.72,0.00022177,2]
[311733793,1705368632583,-311.98092974,0.00022177,2]
[311733794,1705368632596,-300.0,0.00022177,2]
[311733795,1705368632607,-46.51907026,0.00022177,2]
[311733796,1705368632617,-911.17,0.00022177,2]
[311733797,1705368632626,-500.0,0.00022177,2]
[311733798,1705368632636,-567.29,0.00022177,2]
[311733799,1705368632645,-500.0,0.00022177,2]
[311733800,1705368632654,-617.18,0.00022177,2]
[311733801,1705368632663,-500.0,0.00022177,2]
[311733802,1705368632673,-599.51,0.00022177,2]
[311733803,1705368632686,-568.13,0.00022177,2]
[311733804,1705368632704,-500.0,0.00022177,2]
[311733805,1705368632717,-981.93,0.00022177,2]
[311733806,1705368632732,-1241.84,0.00022177,2]
[311733807,1705368632746,-3531.63,0.00022177,2]
[311733808,1705368632757,-550.32,0.00022177,2]
[311733809,1705368632770,-500.0,0.00022177,2]
[311733810,1705368632784,-500.0,0.00022177,2]
[311733811,1705368632797,-200.98092959,0.00022177,2]
[311733821,1705368638206,-330.36907041,0.00022177,2]
[311733822,1705368638216,-684.33,0.00022177,2]
[311733823,1705368638226,-243.70092959,0.00022177,2]
[311733824,1705368638240,-397.21907041,0.00022177,2]
[311733825,1705368638249,-888.05,0.00022177,2]
[311733826,1705368638259,-500.0,0.00022177,2]
[311733827,1705368638269,-464.47707706,0.00022177,2]
[311733828,1705368638281,-35.52292294,0.00022177,2]
[311733829,1705368638291,-500.0,0.00022177,2]
[311733830,1705368638300,-536.85,0.00022177,2]
[311733831,1705368638310,-903.34,0.00022177,2]
[311733832,1705368638320,-1646.88,0.00022177,2]
[311733833,1705368638329,-793.12,0.00022177,2]
[311733834,1705368638339,-705.17,0.00022177,2]
[311733835,1705368638349,-578.9,0.00022177,2]
[311733836,1705368638359,-526.36,0.00022177,2]
[311733837,1705368638369,-1113.79,0.00022177,2]
[311733839,1705368638378,-970.52,0.00022177,2]
[311733841,1705368638387,-500.0,0.00022177,2]
[311733843,1705368638399,-956.49,0.00022177,2]
[311733845,1705368638409,-913.54,0.00022177,2]
[311733847,1705368638419,-553.36,0.00022177,2]
[311733849,1705368638428,-1026.26,0.00022177,2]
[311733851,1705368638438,-500.0,0.00022177,2]
[311733853,1705368638447,-807.72,0.00022177,2]